bitfinex-derivatives/quotes_BTCF0:USTF0_20260113
["timestamp","ask_amount","ask_price","bid_price","bid_amount"]
[1768291982961,0.04970313,92006.0,91988.0,0.09792]
[1768291983462,0.13126857,92000.0,91988.0,0.11908909]
[1768291983759,0.04970313,92006.0,91988.0,0.17173674]
[1768291984061,0.04970313,92006.0,91988.0,0.21353107]
[1768291984560,0.00016301,92007.0,91990.0,0.24687964]
[1768291986758,0.00016301,92007.0,91991.0,0.02089779]
[1768291988260,0.00016301,92007.0,91991.0,0.11887211]
[1768291988461,0.00016301,92007.0,91992.0,0.02089779]
[1768291988862,0.00016301,92007.0,91992.0,0.11887211]
[1768291989057,0.00016301,92007.0,91993.0,0.02089779]
[1768291989257,0.00016301,92007.0,91993.0,0.11887211]
[1768291990266,0.00016301,92007.0,91994.0,0.11887211]
[1768291990860,0.00016301,92007.0,91995.0,0.02089779]
[1768291991661,0.00016301,92007.0,91995.0,0.11887211]
[1768291992964,0.00016301,92007.0,91996.0,0.02089779]
[1768291993158,0.000106,92009.0,91988.0,0.108801]
[1768291993159,0.05307851,92023.0,92002.0,0.02089779]
[1768291993462,0.13126857,92020.0,92008.0,0.11887211]
[1768291993662,0.02519843,92019.0,92008.0,0.11887211]
[1768291993862,0.02519843,92018.0,92008.0,0.11887211]
[1768291994064,0.02519843,92017.0,92008.0,0.11887211]
[1768291994264,0.22918857,92020.0,92008.0,0.11887211]
[1768291994462,0.02519634,92019.0,92008.0,0.11887211]
[1768291994661,0.02519634,92018.0,92008.0,0.11887211]
[1768291994968,0.22918857,92020.0,92008.0,0.11887211]
[1768291995152,0.02519687,92019.0,92009.0,0.11108944]
[1768291995355,0.22918857,92020.0,92010.0,0.11108944]
[1768291997565,0.22918857,92020.0,92010.0,0.02080078]
[1768291999264,0.09792,92020.0,92010.0,0.02080078]
[1768292007275,0.09792,92020.0,92007.0,0.09028866]
[1768292012579,0.09792,92020.0,92008.0,0.02080078]
[1768292012874,0.09792,92035.0,92019.0,0.09028866]
[1768292013080,0.1312627,92050.0,92019.0,0.09028866]
[1768292013081,0.09792,92041.0,92025.0,0.02080078]
[1768292014872,0.108794,92048.0,92025.0,0.02080078]
[1768292015073,0.108794,92048.0,92026.0,0.09697418]
[1768292015272,0.108794,92048.0,92029.0,0.11796135]
[1768292015472,0.108794,92048.0,92030.0,0.02098717]
[1768292017375,0.07844075,92044.0,92025.0,0.11796135]
[1768292017572,0.07883604,92039.0,92024.0,0.00016301]
[1768292017974,0.010875,92039.0,92024.0,0.00016301]
[1768292019585,0.06796104,92042.0,92024.0,0.00016301]
[1768292021185,0.06746104,92042.0,92024.0,0.00016301]
[1768292021382,0.010874,92047.0,92026.0,0.09697418]
[1768292021582,0.09792,92048.0,92031.0,0.02098717]
[1768292023173,0.16780636,92048.0,92031.0,0.02098717]
[1768292025086,0.09792,92048.0,92032.0,0.09697418]
[1768292025279,0.09792,92048.0,92035.0,0.11796135]
[1768292027083,0.09792,92048.0,92035.0,0.01498717]
[1768292027490,0.09792,92048.0,92032.0,0.09697418]
[1768292029385,0.09792,92048.0,92032.0,0.11796135]
[1768292030092,0.09792,92048.0,92033.0,0.11796135]
[1768292030994,0.04305124,92050.0,92038.0,0.02098717]
[1768292031292,0.10030981,92058.0,92044.0,0.02098717]
[1768292031493,0.10030981,92058.0,92046.0,0.11796135]
[1768292031692,0.10030981,92058.0,92048.0,0.11796135]
[1768292031892,0.10030981,92058.0,92048.0,0.10979398]
[1768292032092,0.10030981,92058.0,92048.0,0.10161865]
[1768292032398,0.10030981,92058.0,92048.0,0.09752915]
[1768292033991,0.10030981,92058.0,92048.0,0.00055497]
[1768292034597,0.10030981,92058.0,92045.0,0.09697418]
[1768292034903,0.10030981,92058.0,92044.0,0.00016301]
[1768292042706,0.09338895,92055.0,92033.0,0.09697418]
[1768292042910,0.1145241,92055.0,92034.0,0.09788]
[1768292043107,0.1145241,92054.0,92034.0,0.09788]
[1768292043619,0.1145241,92054.0,92034.0,0.108756]
[1768292043808,0.1145241,92054.0,92034.0,0.20573018]
[1768292044009,0.1145241,92054.0,92035.0,0.09697418]
[1768292044407,0.10030981,92058.0,92037.0,0.09697418]
[1768292044606,0.19369876,92058.0,92037.0,0.09697418]
[1768292044914,0.09957304,92057.0,92037.0,0.09697418]
[1768292045104,0.09957304,92055.0,92037.0,0.09788]
[1768292046814,0.12058426,92055.0,92037.0,0.09788]
[1768292050820,0.02101122,92055.0,92037.0,0.19430873]
[1768292052818,0.19988285,92058.0,92038.0,0.09642873]
[1768292055121,0.09843232,92057.0,92038.0,0.09642873]
[1768292059316,0.13116211,92050.0,92038.0,0.09642873]
[1768292059518,0.13116211,92050.0,92038.0,0.11848004]
[1768292061718,0.2210114,92058.0,92038.0,0.11848004]
[1768292061918,0.13116211,92050.0,92038.0,0.11848004]
[1768292062633,0.13116211,92050.0,92039.0,0.010875]
[1768292062831,0.13116211,92050.0,92038.0,0.12935504]
[1768292063028,0.00238981,92058.0,92041.0,0.09997875]
[1768292063328,0.00238981,92058.0,92041.0,0.12203006]
[1768292064230,0.00238981,92058.0,92042.0,0.02205131]
[1768292066533,0.13116211,92052.0,92037.0,0.19785875]
[1768292066736,0.13116211,92050.0,92038.0,0.09997875]
[1768292067028,0.02465908,92058.0,92038.0,0.12203006]
[1768292067226,0.13116211,92050.0,92038.0,0.12203006]
[1768292068521,0.13116211,92050.0,92037.0,0.09788]
[1768292068522,0.00238981,92058.0,92044.0,0.12203006]
[1768292068728,0.00238981,92058.0,92046.0,0.09997875]
[1768292071738,0.13116211,92056.0,92038.0,0.09997875]
[1768292071928,0.13116211,92050.0,92039.0,0.12203006]
[1768292072842,0.10082213,92058.0,92039.0,0.12203006]
[1768292073042,0.13116211,92050.0,92039.0,0.12203006]
[1768292074538,0.00238981,92058.0,92038.0,0.0947959]
[1768292074741,0.13116211,92050.0,92038.0,0.0947959]
[1768292075042,0.13116211,92050.0,92037.0,0.09788]
[1768292076044,0.13116211,92050.0,92037.0,0.1926759]
[1768292077345,0.13116211,92050.0,92038.0,0.0947959]
[1768292080142,0.09319457,92058.0,92038.0,0.0947959]
[1768292080341,0.13116211,92050.0,92038.0,0.0947959]
[1768292083749,0.09319457,92058.0,92038.0,0.0947959]
[1768292084054,0.13116211,92050.0,92038.0,0.0947959]
[1768292084348,0.13116211,92050.0,92038.0,0.11547305]
[1768292086451,0.09080476,92057.0,92037.0,0.09788]
[1768292086745,0.13116211,92050.0,92037.0,0.1926759]
[1768292087838,0.09319457,92058.0,92037.0,0.1926759]
[1768292088039,0.13116211,92050.0,92037.0,0.1926759]
[1768292092357,0.09319457,92058.0,92037.0,0.1926759]
[1768292092648,0.13116211,92050.0,92037.0,0.2035509]
[1768292096158,0.09319457,92058.0,92038.0,0.0947959]
[1768292096458,0.13116211,92050.0,92038.0,0.0947959]
[1768292098158,0.09319457,92058.0,92038.0,0.0947959]
[1768292098358,0.13116211,92050.0,92038.0,0.0947959]
[1768292099758,0.13116211,92050.0,92037.0,0.108755]
[1768292100649,0.13116211,92050.0,92037.0,0.09788]
[1768292101056,0.02067032,92041.0,92025.0,0.00121511]
[1768292101359,0.13116211,92035.0,92025.0,0.00121511]
[1768292101543,0.22196687,92040.0,92025.0,0.00121511]
[1768292101949,0.22196687,92040.0,92026.0,0.010877]
[1768292104259,0.22196687,92040.0,92025.0,0.00121511]
[1768292104260,0.22196687,92040.0,92029.0,0.010876]
[1768292104462,1e-08,92042.0,92035.0,0.010876]
[1768292105053,1e-08,92042.0,92031.0,0.010876]
[1768292108062,0.13116211,92041.0,92031.0,0.010876]
[1768292112265,0.23115236,92041.0,92025.0,0.00121511]
[1768292112667,0.09999025,92040.0,92025.0,0.00121511]
[1768292112866,0.09999025,92040.0,92032.0,0.010876]
[1768292113173,0.09999025,92040.0,92025.0,0.00121511]
[1768292114565,0.22516534,92035.0,92014.0,0.09362634]
[1768292114868,0.13116211,92030.0,92022.0,0.010877]
[1768292115053,0.13116211,92032.0,92022.0,0.010877]
[1768292115569,1.1e-07,92032.0,92025.0,0.010877]
[1768292115771,0.13116211,92035.0,92025.0,0.010877]
[1768292118460,0.09400323,92038.0,92025.0,0.010877]
[1768292118662,0.09400323,92038.0,92028.0,0.010877]
[1768292118962,0.13116211,92040.0,92028.0,0.010877]
[1768292119361,0.09400323,92041.0,92028.0,0.010877]
[1768292119866,0.11503321,92041.0,92028.0,0.010877]
[1768292121171,0.09400323,92039.0,92028.0,0.010877]
[1768292121871,0.11503321,92039.0,92028.0,0.010877]
[1768292123372,0.11503321,92039.0,92018.0,0.11435029]
[1768292123574,0.11503321,92039.0,92018.0,0.10350929]
[1768292123972,0.11503321,92038.0,92018.0,0.10350929]
[1768292124173,0.11503321,92038.0,92023.0,0.010877]
[1768292126276,0.11473321,92038.0,92023.0,0.010877]
[1768292127173,0.09400323,92038.0,92023.0,0.010877]
[1768292128573,0.02102998,92039.0,92026.0,0.010877]
[1768292129082,0.02102998,92039.0,92029.0,0.010876]
[1768292129871,1e-08,92042.0,92035.0,0.010876]
[1768292130077,1.7e-07,92045.0,92038.0,0.010875]
[1768292130676,0.09788,92050.0,92041.0,0.010875]
[1768292130874,0.09788,92050.0,92027.0,0.05145459]
[1768292130875,8.1e-07,92058.0,92056.0,0.010873]
[1768292131177,5.4e-07,92068.0,92053.0,0.11435029]
[1768292131371,0.09792,92074.0,92053.0,0.11435029]
[1768292131679,0.09792,92073.0,92055.0,0.09362634]
[1768292131877,0.02102998,92076.0,92062.0,0.010873]
[1768292132181,0.09792,92074.0,92062.0,0.010873]
[1768292133173,0.09792,92074.0,92060.0,0.010873]
[1768292139189,0.09792,92074.0,92056.0,0.010873]
[1768292139383,0.12078213,92073.0,92056.0,0.010873]
[1768292139577,0.12078213,92070.0,92052.0,0.010874]
[1768292141090,0.12078213,92069.0,92052.0,0.010874]
[1768292142190,0.12078213,92069.0,92052.0,0.009874]
[1768292144498,0.12078213,92068.0,92052.0,0.009874]
[1768292146085,0.12078213,92068.0,92051.0,0.00016301]
[1768292146086,0.09387848,92066.0,92044.0,0.010875]
[1768292146389,0.12078213,92054.0,92036.0,0.1186]
[1768292146593,0.12078213,92054.0,92042.0,0.09788]
[1768292147193,1.3e-07,92054.0,92047.0,0.010874]
[1768292148596,1.3e-07,92054.0,92039.0,0.108755]
[1768292149188,0.07012087,92054.0,92039.0,0.108755]
[1768292149489,0.07012087,92054.0,92042.0,0.010875]
[1768292150196,0.05852952,92048.0,92039.0,0.09788]
[1768292150396,0.05852952,92048.0,92042.0,0.010875]
[1768292150798,0.02690365,92049.0,92042.0,0.010875]
[1768292151387,0.02690365,92063.0,92042.0,0.010875]
[1768292156094,0.02690365,92063.0,92039.0,0.09788]
[1768292156095,0.02690365,92063.0,92045.0,0.010875]
[1768292156289,0.02690365,92063.0,92039.0,0.18839386]
[1768292156695,0.02690365,92063.0,92046.0,0.010874]
[1768292161292,0.02690365,92062.0,92046.0,0.010874]
[1768292163709,0.02690365,92062.0,92049.0,0.010874]
[1768292169900,0.02690365,92062.0,92045.0,0.010875]
[1768292178505,0.02945551,92055.0,92033.0,0.07822527]
[1768292179011,0.02945551,92055.0,92032.0,0.07822527]
[1768292179012,0.04249351,92055.0,92032.0,0.07822527]
[1768292179199,0.14208609,92060.0,92032.0,0.07822527]
[1768292179399,0.14208609,92060.0,92033.0,0.010876]
[1768292179600,0.00204621,92059.0,92033.0,0.010876]
[1768292180605,0.03025551,92056.0,92033.0,0.010876]
[1768292180810,0.00204621,92053.0,92033.0,0.010876]
[1768292181011,0.09992621,92053.0,92033.0,0.010876]
[1768292181412,0.13118534,92050.0,92033.0,0.010876]
[1768292183415,0.13325452,92050.0,92033.0,0.010876]
[1768292183714,0.00206918,92050.0,92031.0,0.17096336]
[1768292183915,0.13325452,92050.0,92032.0,0.09273809]
[1768292184112,0.00161593,92067.0,92046.0,0.0297015]
[1768292184415,0.13118534,92060.0,92047.0,0.10361209]
[1768292184617,0.13118534,92060.0,92047.0,0.01103692]
[1768292185315,0.00161593,92063.0,92047.0,0.01103692]
[1768292185501,0.09788,92062.0,92047.0,0.01103692]
[1768292185705,0.13118534,92060.0,92047.0,0.01103692]
[1768292186414,0.09969633,92062.0,92047.0,0.01103692]
[1768292186606,0.09788,92061.0,92047.0,0.01103692]
[1768292187310,0.09788,92061.0,92051.0,0.010874]
[1768292187510,0.22906534,92061.0,92051.0,0.010874]
[1768292188511,0.03025551,92069.0,92051.0,0.09273809]
[1768292188714,0.00192841,92080.0,92060.0,0.22392343]
[1768292189016,0.09980841,92079.0,92060.0,0.22392343]
[1768292189206,0.09980841,92079.0,92061.0,0.09273809]
[1768292190010,0.0019777,92078.0,92060.0,0.13118534]
[1768292190413,0.0019777,92078.0,92063.0,0.010872]
[1768292190814,0.0019777,92078.0,92060.0,0.22392343]
[1768292191313,0.09788,92077.0,92060.0,0.22392343]
[1768292193219,0.09788,92077.0,92060.0,0.09273809]
[1768292193417,0.09788,92077.0,92060.0,0.22392343]
[1768292193718,0.09788,92077.0,92061.0,0.010873]
[1768292194419,0.09788,92077.0,92060.0,0.22392343]
[1768292194927,0.09788,92077.0,92060.0,0.13118534]
[1768292200213,0.13118534,92070.0,92058.0,0.0995267]
[1768292200515,0.13118534,92070.0,92057.0,0.0405745]
[1768292200716,0.13118534,92070.0,92054.0,0.0995267]
[1768292201118,0.00506812,92069.0,92051.0,0.010874]
[1768292202021,0.00506812,92069.0,92051.0,0.1104007]
[1768292202224,0.16147355,92070.0,92051.0,0.1104007]
[1768292202523,0.16147355,92070.0,92054.0,0.010874]
[1768292206324,0.00594257,92072.0,92054.0,0.010874]
[1768292206529,0.13118534,92070.0,92052.0,0.0995267]
[1768292207030,0.13118534,92070.0,92053.0,0.0995267]
[1768292207519,0.13118534,92070.0,92056.0,0.010873]
[1768292213839,0.14156342,92070.0,92056.0,0.010873]
[1768292214030,0.01037808,92070.0,92056.0,0.010873]
[1768292214232,0.14156342,92070.0,92056.0,0.010873]
[1768292215540,0.14156342,92070.0,92052.0,0.02968541]
[1768292215934,0.14156342,92070.0,92052.0,0.12921211]
[1768292216641,0.14156342,92070.0,92058.0,0.010873]
[1768292217141,0.13118534,92080.0,92050.0,0.28149648]
[1768292217142,0.09788,92073.0,92065.0,0.010872]
[1768292219740,0.0054298,92085.0,92064.0,0.0995267]
[1768292219944,0.0054298,92085.0,92060.0,0.13118534]
[1768292219945,0.1223338,92084.0,92070.0,0.010872]
[1768292220239,0.0244538,92083.0,92070.0,0.010872]
[1768292220442,0.09788,92084.0,92070.0,0.010872]
[1768292220645,0.02445371,92083.0,92070.0,0.010872]
[1768292220845,0.09788,92084.0,92070.0,0.010872]
[1768292221147,0.02445371,92083.0,92070.0,0.010872]
[1768292221346,0.13118534,92080.0,92070.0,0.010872]
[1768292222246,0.13118534,92080.0,92067.0,0.00016292]
[1768292222247,0.00834923,92079.0,92067.0,0.00016292]
[1768292222430,0.00834923,92072.0,92052.0,0.02968541]
[1768292222633,0.13118534,92070.0,92052.0,0.12756541]
[1768292223331,3.4e-07,92062.0,92056.0,0.010873]
[1768292223545,0.00893202,92067.0,92056.0,0.010873]
[1768292223743,0.00893202,92067.0,92052.0,0.108754]
[1768292223941,0.00893202,92067.0,92052.0,0.09788]
[1768292224140,0.00893202,92067.0,92055.0,0.010873]
[1768292224349,0.00893202,92067.0,92055.0,0.010773]
[1768292224539,0.00893202,92066.0,92055.0,0.010773]
[1768292227252,0.03028821,92067.0,92055.0,0.010773]
[1768292227548,0.00792128,92069.0,92055.0,0.010773]
[1768292228046,0.03670038,92068.0,92055.0,0.010773]
[1768292228346,0.00721879,92067.0,92055.0,0.010773]
[1768292229443,0.02948159,92068.0,92055.0,0.010773]
[1768292234650,0.02948159,92068.0,92052.0,0.09788]
[1768292236061,0.13840413,92070.0,92052.0,0.09788]
[1768292236458,0.13840413,92070.0,92057.0,0.010873]
[1768292238264,0.00996611,92069.0,92057.0,0.010873]
[1768292243360,0.03090351,92070.0,92057.0,0.010873]
[1768292244162,0.10647953,92072.0,92060.0,0.010873]
[1768292248166,0.09788,92072.0,92060.0,0.010873]
[1768292249969,0.09788,92072.0,92063.0,0.010872]
[1768292251666,0.00016292,92084.0,92072.0,0.010871]
[1768292251868,0.12262427,92083.0,92072.0,0.010871]
[1768292252071,0.00016292,92084.0,92072.0,0.010871]
[1768292252271,0.09788,92083.0,92072.0,0.010871]
[1768292252459,0.10460163,92083.0,92072.0,0.010871]
[1768292253869,0.10460163,92083.0,92067.0,0.010872]
[1768292255768,0.10460163,92083.0,92070.0,0.010872]
[1768292256168,0.09788,92082.0,92070.0,0.010872]
[1768292256365,0.00016292,92084.0,92070.0,0.010872]
[1768292256568,0.09788,92083.0,92070.0,0.10941013]
[1768292256960,0.09788,92083.0,92070.0,0.010872]
[1768292258768,0.09788,92083.0,92073.0,0.010871]
[1768292259359,0.03129803,92088.0,92073.0,0.010871]
[1768292259360,0.00238903,92088.0,92076.0,0.010871]
[1768292259665,0.09788,92087.0,92076.0,0.010871]
[1768292261870,0.00238903,92088.0,92076.0,0.10940913]
[1768292262265,0.00238903,92088.0,92076.0,0.010871]
[1768292265877,0.00229903,92088.0,92076.0,0.010871]
[1768292268178,0.09788,92091.0,92076.0,0.010871]
[1768292270384,0.00736103,92099.0,92080.0,0.09853813]
[1768292270571,0.12244842,92098.0,92081.0,0.09853813]
[1768292270770,0.09788,92098.0,92081.0,0.09853813]
[1768292271082,0.10525872,92098.0,92080.0,0.03094045]
[1768292271379,0.10525872,92098.0,92081.0,0.01087]
[1768292272476,0.10525872,92098.0,92084.0,0.01087]
[1768292273076,0.00740123,92097.0,92084.0,0.01087]
[1768292273279,0.09788,92098.0,92080.0,0.09853813]
[1768292273467,0.09788,92098.0,92088.0,0.010869]
[1768292273672,0.09788,92098.0,92083.0,0.01087]
[1768292274484,0.10528123,92098.0,92083.0,0.01087]
[1768292275380,0.09788,92098.0,92083.0,0.01087]
[1768292275678,0.09788,92098.0,92083.0,0.10940813]
[1768292275881,0.09784,92100.0,92083.0,0.10940813]
[1768292276183,0.10464404,92100.0,92083.0,0.01087]
[1768292276985,0.00660524,92098.0,92083.0,0.01087]
[1768292278589,0.00660524,92097.0,92083.0,0.01087]
[1768292281595,0.00660524,92097.0,92079.0,0.010871]
[1768292282892,0.00650524,92097.0,92079.0,0.010871]
[1768292283495,0.00650524,92097.0,92079.0,0.10940913]
[1768292283696,0.028909,92098.0,92079.0,0.10940913]
[1768292284691,0.028909,92098.0,92075.0,0.09788]
[1768292284894,0.03930787,92091.0,92070.0,0.09073331]
[1768292285101,0.01054875,92090.0,92071.0,0.09784]
[1768292286497,0.01054875,92090.0,92073.0,0.010871]
[1768292288301,0.01203177,92096.0,92078.0,0.010871]
[1768292288696,0.01203177,92096.0,92078.0,0.10160431]
[1768292291794,0.02875912,92099.0,92078.0,0.10160431]
[1768292292096,0.03744466,92099.0,92078.0,0.10160431]
[1768292292302,0.00868554,92098.0,92078.0,0.10160431]
[1768292293902,0.00860079,92096.0,92078.0,0.10160431]
[1768292296105,0.02875912,92097.0,92078.0,0.10160431]
[1768292297106,0.03666192,92097.0,92078.0,0.09073331]
[1768292297403,0.0079028,92096.0,92078.0,0.09073331]
[1768292298609,0.0079028,92096.0,92077.0,0.04145414]
[1768292300807,0.0079028,92096.0,92077.0,0.09402695]
[1768292301110,0.0079028,92096.0,92077.0,0.18528949]
[1768292303322,0.13105409,92090.0,92077.0,0.18528949]
[1768292304124,0.13105409,92090.0,92078.0,0.09126254]
[1768292309224,0.13105409,92090.0,92073.0,0.09126254]
[1768292309427,0.13105409,92083.0,92070.0,0.108712]
[1768292309725,0.0103652,92089.0,92070.0,0.19997454]
[1768292309926,0.13105409,92090.0,92072.0,0.10213354]
[1768292311329,0.13105409,92082.0,92072.0,0.10213354]
[1768292312021,0.13105409,92082.0,92072.0,0.09126254]
[1768292312223,0.13105409,92090.0,92072.0,0.09126254]
[1768292313328,0.13105409,92090.0,92070.0,0.108712]
[1768292313329,0.13105409,92090.0,92074.0,0.11884563]
[1768292315231,0.1330165,92090.0,92070.0,0.10707808]
[1768292316532,0.1330165,92090.0,92071.0,0.09620608]
[1768292317439,0.00196241,92090.0,92071.0,0.09620608]
[1768292317626,0.13105409,92090.0,92072.0,0.09620608]
[1768292317828,0.13105409,92090.0,92073.0,0.09620608]
[1768292318939,0.13105409,92090.0,92074.0,0.09620608]
[1768292319638,0.13105409,92090.0,92073.0,0.02908583]
[1768292320241,0.00074982,92089.0,92070.0,0.23813217]
[1768292320538,0.00074982,92089.0,92070.0,0.10707808]
[1768292320840,0.13105409,92080.0,92070.0,0.03995783]
[1768292321344,0.00074982,92089.0,92070.0,0.03995783]
[1768292321642,0.00074982,92089.0,92070.0,0.13616391]
[1768292324042,0.13105409,92090.0,92073.0,0.12529191]
[1768292324341,0.13105409,92090.0,92074.0,0.09620608]
[1768292324642,0.13105409,92090.0,92073.0,0.02908583]
[1768292324842,0.13105409,92090.0,92074.0,0.09620608]
[1768292325745,0.13105409,92090.0,92075.0,0.010871]
[1768292327341,0.13105409,92090.0,92073.0,0.03995683]
[1768292327548,0.13105409,92090.0,92074.0,0.09620608]
[1768292328349,0.13105409,92090.0,92073.0,0.03995683]
[1768292329648,0.13105409,92090.0,92073.0,0.13616291]
[1768292330449,0.13105409,92090.0,92073.0,0.03995683]
[1768292342965,0.13105409,92090.0,92073.0,0.010871]
[1768292343157,0.09784,92093.0,92077.0,0.09620608]
[1768292343353,0.13105409,92090.0,92077.0,0.12529191]
[1768292343755,0.13105409,92090.0,92078.0,0.09620608]
[1768292345658,0.13105409,92090.0,92075.0,0.010871]
[1768292345854,0.13105409,92090.0,92076.0,0.11828628]
[1768292346159,0.13105409,92090.0,92077.0,0.0908985]
[1768292347762,0.13105409,92090.0,92078.0,0.0908985]
[1768292348761,0.09784,92093.0,92078.0,0.0908985]
[1768292348962,0.13105409,92090.0,92078.0,0.0908985]
[1768292350463,0.13105409,92090.0,92080.0,0.1017685]
[1768292353270,0.13105409,92090.0,92080.0,0.01087]
[1768292354667,0.09784,92093.0,92080.0,0.11045128]
[1768292354860,0.13105409,92090.0,92080.0,0.11045128]
[1768292355258,0.13105409,92090.0,92080.0,0.01087]
[1768292356968,0.13105409,92090.0,92083.0,0.01087]
[1768292357169,0.22889409,92093.0,92083.0,0.01087]
[1768292360179,0.22889409,92093.0,92079.0,0.010871]
[1768292360371,0.13105409,92090.0,92079.0,0.010871]
[1768292361576,0.09784,92093.0,92079.0,0.010871]
[1768292361777,0.13105409,92090.0,92079.0,0.010871]
[1768292363278,0.09784,92093.0,92079.0,0.010871]
[1768292367780,0.02568213,92107.0,92085.0,0.12710486]
[1768292367985,0.02568213,92107.0,92069.0,0.00016292]
[1768292367986,0.02568213,92107.0,92089.0,0.010869]
[1768292368178,0.02568213,92108.0,92089.0,0.010869]
[1768292369986,0.03111075,92105.0,92083.0,0.10871]
[1768292370184,0.03111075,92105.0,92085.0,0.01087]
[1768292373886,0.41916901,92109.0,92098.0,0.12710486]
[1768292373887,0.32132901,92109.0,92098.0,0.12710486]
[1768292374080,0.1643868,92109.0,92095.0,0.010869]
[1768292374281,0.04296389,92109.0,92095.0,0.010869]
[1768292375491,0.04377333,92109.0,92095.0,0.010869]
[1768292376190,0.02568213,92117.0,92095.0,0.010869]
[1768292380392,0.09784,92119.0,92070.0,0.13106119]
[1768292380393,0.02479252,92109.0,92094.0,0.09784]
[1768292380598,0.02479252,92109.0,92093.0,0.09784]
[1768292380985,0.02479252,92109.0,92092.0,0.09784]
[1768292385190,0.02479252,92109.0,92092.0,0.108709]
[1768292388800,0.02479252,92109.0,92092.0,0.010869]
[1768292389001,0.02479252,92109.0,92092.0,0.108709]
[1768292389796,0.02479252,92109.0,92092.0,0.010869]
[1768292392697,0.09784,92119.0,92095.0,0.02637836]
[1768292392902,0.02718077,92118.0,92098.0,0.03724636]
[1768292393497,0.02718077,92118.0,92098.0,0.12993989]
[1768292396492,0.02718077,92118.0,92099.0,0.09269353]
[1768292396695,0.02718077,92118.0,92099.0,0.11907189]
[1768292400498,0.02718077,92118.0,92100.0,0.010868]
[1768292401204,0.02718077,92118.0,92100.0,0.10356153]
[1768292402103,0.00238825,92118.0,92100.0,0.10356153]
[1768292403109,0.02418414,92117.0,92100.0,0.10356153]
[1768292403403,0.00238825,92118.0,92100.0,0.10356153]
[1768292403705,0.02418414,92117.0,92100.0,0.10356153]
[1768292403904,0.02479252,92136.0,92111.0,0.09269353]
[1768292404206,0.02479252,92132.0,92109.0,0.09269353]
[1768292404497,0.02479252,92124.0,92105.0,0.19053353]
[1768292404800,0.13106119,92120.0,92101.0,0.10782273]
[1768292405003,0.13106119,92120.0,92102.0,0.09784]
[1768292405505,0.02479252,92124.0,92102.0,0.19479473]
[1768292405802,0.13106119,92120.0,92103.0,0.09695473]
[1768292406699,0.02479252,92124.0,92104.0,0.09695473]
[1768292412196,0.02479252,92124.0,92104.0,0.09595473]
[1768292413803,0.02479252,92124.0,92097.0,0.010868]
[1768292414010,0.02693175,92119.0,92098.0,0.09784]
[1768292414311,0.02693175,92119.0,92098.0,0.12380257]
[1768292414498,0.02693175,92119.0,92100.0,0.0977142]
[1768292415207,0.02693175,92119.0,92100.0,0.12380257]
[1768292415402,0.02693175,92119.0,92101.0,0.0977142]
[1768292416003,0.02693175,92119.0,92109.0,1.50057958]
[1768292416911,0.13106119,92120.0,92109.0,1.50057958]
[1768292420012,0.02578787,92117.0,92095.0,0.00183315]
[1768292420309,0.13106119,92110.0,92091.0,0.09546224]
[1768292422213,0.13106119,92110.0,92093.0,0.0977142]
[1768292425313,0.13102823,92103.0,92093.0,0.0977142]
[1768292429518,0.13102823,92103.0,92093.0,0.1085832]
[1768292437421,0.13102823,92103.0,92096.0,0.010869]
[1768292437611,0.13102823,92106.0,92096.0,0.010869]
[1768292438218,0.13102823,92110.0,92099.0,0.010868]
[1768292440532,0.22886823,92110.0,92099.0,0.010868]
[1768292445028,0.22886823,92110.0,92095.0,0.010869]
[1768292445728,0.09784,92110.0,92095.0,0.10696846]
[1768292445923,0.09784,92110.0,92097.0,0.010868]
[1768292446130,0.22886823,92110.0,92097.0,0.010868]
[1768292448220,0.22886823,92110.0,92095.0,0.02866127]
[1768292450926,0.22886823,92110.0,92096.0,0.010869]
[1768292451631,0.09784,92110.0,92096.0,0.010869]
[1768292451815,0.22886823,92110.0,92096.0,0.010869]
[1768292455433,0.09784,92110.0,92096.0,0.010869]
[1768292455624,0.22886823,92110.0,92096.0,0.010869]
[1768292459132,0.22886823,92110.0,92093.0,0.09609946]
[1768292459338,0.09784,92110.0,92093.0,0.09609946]
[1768292459537,0.22886823,92110.0,92094.0,0.010869]
[1768292462339,0.22886823,92110.0,92097.0,0.010868]
[1768292463540,0.09784,92110.0,92097.0,0.010868]
[1768292463737,0.22886823,92110.0,92097.0,0.010868]
[1768292465040,0.22886823,92110.0,92093.0,0.10696846]
[1768292465839,0.22886823,92110.0,92093.0,0.010869]
[1768292466336,0.09784,92110.0,92093.0,0.010869]
[1768292466533,0.13102823,92103.0,92092.0,0.00016292]
[1768292466735,0.02666542,92102.0,92092.0,1e-08]
[1768292469740,0.22886823,92110.0,92092.0,1e-08]
[1768292469940,0.02666542,92109.0,92092.0,1e-08]
[1768292471031,0.02666542,92109.0,92092.0,0.01086901]
[1768292481767,0.22886823,92110.0,92096.0,0.010869]
[1768292482364,0.09784,92110.0,92096.0,0.010869]
[1768292482862,0.22886823,92110.0,92096.0,0.010869]
[1768292483163,0.12403615,92110.0,92096.0,0.010869]
[1768292483362,0.25506438,92110.0,92096.0,0.010869]
[1768292484162,0.00016292,92111.0,92095.0,0.09561071]
[1768292484360,0.00542744,92125.0,92092.0,1e-08]
[1768292484361,0.09784,92114.0,92105.0,0.12251216]
[1768292484553,0.13102823,92120.0,92105.0,0.12251216]
[1768292484861,0.12195846,92119.0,92105.0,0.02690145]
[1768292485052,0.09784,92119.0,92101.0,0.09561071]
[1768292485456,0.09784,92119.0,92103.0,0.010868]
[1768292486261,0.13102823,92120.0,92103.0,0.010868]
[1768292486457,0.12195787,92119.0,92103.0,0.010868]
[1768292486756,0.03162359,92125.0,92103.0,0.010868]
[1768292486965,0.12195778,92124.0,92110.0,0.13102823]
[1768292487150,0.02411778,92123.0,92110.0,0.13102823]
[1768292487350,0.02411778,92122.0,92106.0,0.010867]
[1768292487560,0.02411778,92121.0,92106.0,0.010867]
[1768292487764,0.09784,92124.0,92106.0,0.010867]
[1768292487960,0.02411646,92123.0,92106.0,0.010867]
[1768292488160,0.02411646,92122.0,92106.0,0.010867]
[1768292488363,0.02411646,92121.0,92109.0,0.010867]
[1768292488559,0.09784,92124.0,92109.0,0.010867]
[1768292488758,0.02411538,92123.0,92109.0,0.010867]
[1768292489068,0.09784,92122.0,92109.0,0.010867]
[1768292490758,0.00542744,92125.0,92115.0,0.09561071]
[1768292490965,0.00542744,92125.0,92115.0,0.12251216]
[1768292492267,0.00542626,92145.0,92122.0,0.09561071]
[1768292492472,0.12192512,92144.0,92124.0,0.02690145]
[1768292492677,0.02408512,92143.0,92124.0,0.12251216]
[1768292492967,0.02408512,92142.0,92124.0,0.12251216]
[1768292493161,0.02408512,92141.0,92124.0,0.12251216]